[Event "Early-Titled-Tuesday-Blitz-September-12-2023"]
[Site "Chess.com"]
[Date "2023.09.12"]
[Round "6"]
[White "GlavkonVVS"]
[Black "marik_spb"]
[Result "0-1"]
[WhiteElo "2563"]
[BlackElo "2447"]
[TimeControl "180+1"]
[EndTime "9:08:36 PDT"]
[Termination "marik_spb won by resignation"]

1. c4 {[%clk 0:03:00.9]} 1... Nf6 {[%clk 0:02:43.3]} 2. Nc3 {[%clk 0:03:00.4]}
2... g6 {[%clk 0:02:41.1]} 3. Nf3 {[%clk 0:03:00.6]} 3... Bg7 {[%clk 0:02:41.1]}
4. d4 {[%clk 0:03:01.1]} 4... O-O {[%clk 0:02:41.5]} 5. Bg5 {[%clk 0:03:01.3]}
5... c5 {[%clk 0:02:35.4]} 6. d5 {[%clk 0:03:00]} 6... d6 {[%clk 0:02:30.5]} 7.
e4 {[%clk 0:02:59.4]} 7... b5 {[%clk 0:02:26]} 8. cxb5 {[%clk 0:02:58.5]} 8...
a6 {[%clk 0:02:25.9]} 9. a4 {[%clk 0:02:57]} 9... Qa5 {[%clk 0:02:24]} 10. Bd2
{[%clk 0:02:54.6]} 10... Qb4 {[%clk 0:02:19]} 11. Qc2 {[%clk 0:02:49.1]} 11...
Bd7 {[%clk 0:01:47.2]} 12. bxa6 {[%clk 0:02:36.7]} 12... Nxa6 {[%clk 0:01:46.1]}
13. Bxa6 {[%clk 0:02:18]} 13... Rxa6 {[%clk 0:01:42]} 14. O-O {[%clk 0:02:18]}
14... Rb8 {[%clk 0:01:40.9]} 15. Bc1 {[%clk 0:02:07]} 15... Rba8 {[%clk
0:01:15.5]} 16. e5 {[%clk 0:01:51.3]} 16... Ng4 {[%clk 0:01:03]} 17. exd6 {[%clk
0:01:44.7]} 17... exd6 {[%clk 0:01:03.9]} 18. h3 {[%clk 0:01:27.8]} 18... Ne5
{[%clk 0:01:02.3]} 19. Nxe5 {[%clk 0:01:27.7]} 19... Bxe5 {[%clk 0:01:03.2]} 20.
Bh6 {[%clk 0:01:23.3]} 20... Qh4 {[%clk 0:00:40.4]} 21. Qd2 {[%clk 0:01:16.4]}
21... Bxh3 {[%clk 0:00:23]} 22. gxh3 {[%clk 0:01:15.9]} 22... Qxh3 {[%clk
0:00:23.9]} 23. Bf4 {[%clk 0:00:54.5]} 23... Qg4+ {[%clk 0:00:24.4]} 24. Bg3
{[%clk 0:00:54.2]} 24... Bxg3 {[%clk 0:00:24.4]} 25. fxg3 {[%clk 0:00:55.1]}
25... Qxg3+ {[%clk 0:00:25.2]} 26. Qg2 {[%clk 0:00:55.2]} 26... Qe3+ {[%clk
0:00:19.7]} 27. Qf2 {[%clk 0:00:55.6]} 27... Qg5+ {[%clk 0:00:20]} 28. Qg2
{[%clk 0:00:51.3]} 28... Qe3+ {[%clk 0:00:19.1]} 29. Kh1 {[%clk 0:00:51.2]}
29... Rb6 {[%clk 0:00:15.1]} 30. Rf3 {[%clk 0:00:40.7]} 30... Qh6+ {[%clk
0:00:14.7]} 31. Kg1 {[%clk 0:00:40.5]} 31... Rb4 {[%clk 0:00:10.6]} 32. Raf1
{[%clk 0:00:38.8]} 32... Ra7 {[%clk 0:00:10.9]} 33. Nb5 {[%clk 0:00:33.6]} 33...
Rd7 {[%clk 0:00:11.1]} 34. b3 {[%clk 0:00:32.9]} 34... Qh5 {[%clk 0:00:09.8]}
35. Rf4 {[%clk 0:00:32]} 35... Rxb3 {[%clk 0:00:07.3]} 36. Nxd6 {[%clk
0:00:28.2]} 36... Rxd6 {[%clk 0:00:07.4]} 37. Rxf7 {[%clk 0:00:28.5]} 37... Rb8
{[%clk 0:00:07.6]} 38. a5 {[%clk 0:00:20.8]} 38... Rxd5 {[%clk 0:00:07.3]} 39.
R7f3 {[%clk 0:00:18.7]} 39... Rg5 {[%clk 0:00:06.8]} 40. Rg3 {[%clk 0:00:19.3]}
40... Rxg3 {[%clk 0:00:06.3]} 41. Qxg3 {[%clk 0:00:20.2]} 41... Rc8 {[%clk
0:00:04.3]} 42. a6 {[%clk 0:00:19.8]} 42... c4 {[%clk 0:00:03.8]} 43. a7 {[%clk
0:00:19.6]} 43... Qc5+ {[%clk 0:00:04.3]} 44. Qf2 {[%clk 0:00:19.5]} 44... Qxf2+
{[%clk 0:00:04.3]} 45. Rxf2 {[%clk 0:00:20.1]} 45... Ra8 {[%clk 0:00:04.5]} 46.
Ra2 {[%clk 0:00:20.2]} 46... Kf7 {[%clk 0:00:05]} 47. Kf2 {[%clk 0:00:20.6]}
47... Ke6 {[%clk 0:00:05.5]} 48. Ke3 {[%clk 0:00:21.1]} 48... Kd5 {[%clk
0:00:05.8]} 49. Ra5+ {[%clk 0:00:21.2]} 49... Kc6 {[%clk 0:00:06.4]} 50. Kd4
{[%clk 0:00:21.8]} 50... Kb6 {[%clk 0:00:06.8]} 51. Re5 {[%clk 0:00:20.2]} 51...
Rxa7 {[%clk 0:00:07.2]} 52. Kxc4 {[%clk 0:00:20.5]} 52... Ra4+ {[%clk
0:00:07.5]} 53. Kd3 {[%clk 0:00:20.7]} 53... Kc6 {[%clk 0:00:07]} 54. Re7 {[%clk
0:00:20.8]} 54... Rh4 {[%clk 0:00:07.2]} 55. Ke3 {[%clk 0:00:20.7]} 55... Kd6
{[%clk 0:00:07.4]} 56. Ra7 {[%clk 0:00:20.6]} 56... Ke5 {[%clk 0:00:06.7]} 57.
Kf3 {[%clk 0:00:21]} 57... Kf5 {[%clk 0:00:05.1]} 58. Kg3 {[%clk 0:00:21.1]}
58... Rh1 {[%clk 0:00:05.6]} 59. Ra5+ {[%clk 0:00:21]} 59... Kf6 {[%clk
0:00:05.6]} 60. Ra6+ {[%clk 0:00:21.4]} 60... Kg5 {[%clk 0:00:05.2]} 61. Ra5+
{[%clk 0:00:21.6]} 61... Kh6 {[%clk 0:00:05.7]} 62. Kg2 {[%clk 0:00:21.5]} 62...
Rh5 {[%clk 0:00:05.6]} 63. Ra7 {[%clk 0:00:21.4]} 63... Rd5 {[%clk 0:00:05.1]}
64. Kg3 {[%clk 0:00:20.9]} 64... g5 {[%clk 0:00:04.9]} 65. Ra6+ {[%clk
0:00:20.9]} 65... Kh5 {[%clk 0:00:04.9]} 66. Ra7 {[%clk 0:00:21.1]} 66... Rd3+
{[%clk 0:00:04.8]} 67. Kf2 {[%clk 0:00:21.5]} 67... h6 {[%clk 0:00:05.7]} 68.
Ra6 {[%clk 0:00:21.4]} 68... g4 {[%clk 0:00:04.8]} 69. Kg2 {[%clk 0:00:20.5]}
69... Kg5 {[%clk 0:00:04.9]} 70. Ra5+ {[%clk 0:00:20.1]} 70... Kh4 {[%clk
0:00:05.3]} 71. Ra6 {[%clk 0:00:20.3]} 71... Rd2+ {[%clk 0:00:05.7]} 72. Kf1
{[%clk 0:00:20.7]} 72... h5 {[%clk 0:00:06.6]} 73. Ra5 {[%clk 0:00:20.4]} 73...
g3 {[%clk 0:00:06.3]} 74. Kg1 {[%clk 0:00:20.2]} 74... Kg4 {[%clk 0:00:06.1]}
75. Rb5 {[%clk 0:00:19.4]} 75... h4 {[%clk 0:00:06.3]} 76. Ra5 {[%clk
0:00:19.7]} 76... Kh3 {[%clk 0:00:06.4]} 77. Ra1 {[%clk 0:00:19.5]} 77... Rg2+
{[%clk 0:00:06.7]} 78. Kh1 {[%clk 0:00:19.8]} 78... Re2 {[%clk 0:00:07]} 79. Kg1
{[%clk 0:00:20]} 79... Kg4 {[%clk 0:00:07.2]} 80. Ra4+ {[%clk 0:00:19.8]} 80...
Kh3 {[%clk 0:00:06.8]} 81. Ra1 {[%clk 0:00:19.2]} 81... Kg4 {[%clk 0:00:07.4]}
82. Ra4+ {[%clk 0:00:19.2]} 82... Kf3 {[%clk 0:00:08]} 83. Ra3+ {[%clk
0:00:19.5]} 83... Re3 {[%clk 0:00:08.3]} 84. Ra1 {[%clk 0:00:19.6]} 84... h3
{[%clk 0:00:08.2]} 85. Kh1 {[%clk 0:00:19.3]} 85... Ke2 {[%clk 0:00:06.5]} 86.
Ra2+ {[%clk 0:00:18.9]} 86... Kf3 {[%clk 0:00:06.5]} 87. Ra1 {[%clk 0:00:19.3]}
87... Re2 {[%clk 0:00:06.8]} 88. Ra3+ {[%clk 0:00:18.8]} 88... Kf2 {[%clk
0:00:06]} 89. Ra2 {[%clk 0:00:10.6]} 89... g2+ {[%clk 0:00:05.8]} 90. Kh2 {[%clk
0:00:11.1]} 90... g1=Q+ {[%clk 0:00:06.4]} 0-1

[Event "Early-Titled-Tuesday-Blitz-September-12-2023"]
[Site "Chess.com"]
[Date "2023.09.12"]
[Round "7"]
[White "Masterbeaterr"]
[Black "ozates"]
[Result "0-1"]
[WhiteElo "2402"]
[BlackElo "2558"]
[TimeControl "180+1"]
[EndTime "9:12:25 PDT"]
[Termination "ozates won by resignation"]

1. d4 {[%clk 0:03:00.9]} 1... Nf6 {[%clk 0:02:59]} 2. c4 {[%clk 0:03:00.7]} 2...
e6 {[%clk 0:02:59.5]} 3. Nf3 {[%clk 0:03:00.5]} 3... d5 {[%clk 0:03:00.2]} 4.
Nc3 {[%clk 0:03:00]} 4... dxc4 {[%clk 0:02:58.5]} 5. a4 {[%clk 0:02:56.8]} 5...
c5 {[%clk 0:02:58.4]} 6. e3 {[%clk 0:02:56.7]} 6... Nc6 {[%clk 0:02:57.4]} 7.
Bxc4 {[%clk 0:02:56.6]} 7... Be7 {[%clk 0:02:49.2]} 8. O-O {[%clk 0:02:53.6]}
8... O-O {[%clk 0:02:49.1]} 9. dxc5 {[%clk 0:02:49.2]} 9... Bxc5 {[%clk
0:02:49.1]} 10. Be2 {[%clk 0:02:44.3]} 10... b6 {[%clk 0:02:43.7]} 11. Qxd8
{[%clk 0:02:43.2]} 11... Rxd8 {[%clk 0:02:43.2]} 12. Rd1 {[%clk 0:02:44.1]}
12... Bb7 {[%clk 0:02:42.7]} 13. Bd2 {[%clk 0:02:42.5]} 13... Nb4 {[%clk
0:02:41.9]} 14. Be1 {[%clk 0:02:42]} 14... h6 {[%clk 0:02:39.2]} 15. Rxd8+
{[%clk 0:02:38]} 15... Rxd8 {[%clk 0:02:38.5]} 16. Rd1 {[%clk 0:02:38.9]} 16...
Rxd1 {[%clk 0:02:38]} 17. Bxd1 {[%clk 0:02:39.8]} 17... Nd3 {[%clk 0:02:34.9]}
18. b3 {[%clk 0:02:40.1]} 18... Nxe1 {[%clk 0:02:34.2]} 19. Nxe1 {[%clk
0:02:41]} 19... Bb4 {[%clk 0:02:34.7]} 0-1

[Event "Early-Titled-Tuesday-Blitz-September-12-2023"]
[Site "Chess.com"]
[Date "2023.09.12"]
[Round "7"]
[White "jeetjain"]
[Black "PeshkaCh"]
[Result "0-1"]
[WhiteElo "2589"]
[BlackElo "2779"]
[TimeControl "180+1"]
[EndTime "9:13:36 PDT"]
[Termination "PeshkaCh won by resignation"]

1. Nf3 {[%clk 0:03:00.9]} 1... Nf6 {[%clk 0:03:00]} 2. b3 {[%clk 0:02:59.9]}
2... g6 {[%clk 0:03:00]} 3. Bb2 {[%clk 0:02:55.5]} 3... Bg7 {[%clk 0:02:57.9]}
4. g3 {[%clk 0:02:52.7]} 4... O-O {[%clk 0:02:57.3]} 5. Bg2 {[%clk 0:02:52.4]}
5... d5 {[%clk 0:02:57.9]} 6. O-O {[%clk 0:02:52]} 6... c5 {[%clk 0:02:57.3]} 7.
e3 {[%clk 0:02:51.3]} 7... Nc6 {[%clk 0:02:57.3]} 8. d4 {[%clk 0:02:48]} 8...
cxd4 {[%clk 0:02:58.2]} 9. exd4 {[%clk 0:02:47.4]} 9... Bf5 {[%clk 0:02:58.7]}
10. a3 {[%clk 0:02:37.8]} 10... Rc8 {[%clk 0:02:58.3]} 11. Nbd2 {[%clk
0:02:33.3]} 11... Ne4 {[%clk 0:02:55.1]} 12. Nxe4 {[%clk 0:02:21]} 12... dxe4
{[%clk 0:02:56]} 13. Ne5 {[%clk 0:02:18.6]} 13... Nxe5 {[%clk 0:02:55.8]} 14.
dxe5 {[%clk 0:02:17]} 14... Qxd1 {[%clk 0:02:56.7]} 15. Rfxd1 {[%clk 0:02:15.2]}
15... Rxc2 {[%clk 0:02:57.6]} 16. Bd4 {[%clk 0:02:15.7]} 16... b6 {[%clk
0:02:54.3]} 17. a4 {[%clk 0:02:10.1]} 17... Rd8 {[%clk 0:02:49.6]} 18. a5 {[%clk
0:02:07.4]} 18... bxa5 {[%clk 0:02:49.8]} 19. Rxa5 {[%clk 0:02:00.1]} 19... Rxd4
{[%clk 0:02:49.3]} 0-1

[Event "Early-Titled-Tuesday-Blitz-September-12-2023"]
[Site "Chess.com"]
[Date "2023.09.12"]
[Round "7"]
[White "RCone"]
[Black "guillembaches"]
[Result "0-1"]
[WhiteElo "2351"]
[BlackElo "2528"]
[TimeControl "180+1"]
[EndTime "9:14:14 PDT"]
[Termination "guillembaches won by resignation"]

1. e4 {[%clk 0:02:57.2]} 1... c5 {[%clk 0:03:00.2]} 2. Nc3 {[%clk 0:02:56.8]}
2... d6 {[%clk 0:03:00.5]} 3. f4 {[%clk 0:02:55.8]} 3... Nc6 {[%clk 0:03:00.8]}
4. Nf3 {[%clk 0:02:55.9]} 4... g6 {[%clk 0:03:01.4]} 5. Bb5 {[%clk 0:02:55.8]}
5... Bd7 {[%clk 0:02:58.3]} 6. d3 {[%clk 0:02:55.5]} 6... Bg7 {[%clk 0:02:55.6]}
7. O-O {[%clk 0:02:53.5]} 7... e6 {[%clk 0:02:53.8]} 8. Bxc6 {[%clk 0:02:53.1]}
8... Bxc6 {[%clk 0:02:53.2]} 9. f5 {[%clk 0:02:52.8]} 9... Nf6 {[%clk
0:02:37.9]} 10. fxe6 {[%clk 0:02:49.9]} 10... fxe6 {[%clk 0:02:37.3]} 11. e5
{[%clk 0:02:35.3]} 11... dxe5 {[%clk 0:02:30.8]} 12. Nxe5 {[%clk 0:02:33.9]}
12... Qd4+ {[%clk 0:02:25.2]} 13. Kh1 {[%clk 0:02:33]} 13... Qxe5 {[%clk
0:02:24.6]} 14. Bf4 {[%clk 0:02:29]} 14... Qh5 {[%clk 0:02:20]} 15. Qd2 {[%clk
0:02:25.3]} 15... O-O-O {[%clk 0:02:07]} 16. Rae1 {[%clk 0:02:24.4]} 16... Nd5
{[%clk 0:01:59.1]} 17. Rxe6 {[%clk 0:02:19.4]} 17... Nxf4 {[%clk 0:01:52.6]} 18.
Qxf4 {[%clk 0:02:12.1]} 18... Rhf8 {[%clk 0:01:43.9]} 19. Qc1 {[%clk 0:02:02.5]}
19... Bxg2+ {[%clk 0:01:36.4]} 20. Kxg2 {[%clk 0:02:01.6]} 20... Qg4+ {[%clk
0:01:36]} 21. Kh1 {[%clk 0:02:01.1]} 21... Qxe6 {[%clk 0:01:32.5]} 0-1

[Event "Early-Titled-Tuesday-Blitz-September-12-2023"]
[Site "Chess.com"]
[Date "2023.09.12"]
[Round "7"]
[White "Young_Catalan_Player09"]
[Black "Arek_pacitan"]
[Result "0-1"]
[WhiteElo "2456"]
[BlackElo "2609"]
[TimeControl "180+1"]
[EndTime "9:14:16 PDT"]
[Termination "Arek_pacitan won by resignation"]

1. Nf3 {[%clk 0:03:00.9]} 1... Nf6 {[%clk 0:02:31.1]} 2. g3 {[%clk 0:02:55.4]}
2... g6 {[%clk 0:02:31.5]} 3. b3 {[%clk 0:02:52.8]} 3... Bg7 {[%clk 0:02:32.4]}
4. Bb2 {[%clk 0:02:53.5]} 4... O-O {[%clk 0:02:32.9]} 5. Bg2 {[%clk 0:02:54.2]}
5... c5 {[%clk 0:02:32.6]} 6. c4 {[%clk 0:02:53.6]} 6... Nc6 {[%clk 0:02:32.7]}
7. O-O {[%clk 0:02:53.1]} 7... d6 {[%clk 0:02:32.9]} 8. d4 {[%clk 0:02:52.2]}
8... cxd4 {[%clk 0:02:33.8]} 9. Nxd4 {[%clk 0:02:51.9]} 9... Bd7 {[%clk
0:02:34.6]} 10. Nc3 {[%clk 0:02:50.9]} 10... Rc8 {[%clk 0:02:32]} 11. Rc1 {[%clk
0:02:48.6]} 11... Nxd4 {[%clk 0:02:31.8]} 12. Qxd4 {[%clk 0:02:46.9]} 12... Bc6
{[%clk 0:02:32.7]} 13. Qd2 {[%clk 0:02:46.4]} 13... Bxg2 {[%clk 0:02:31.2]} 14.
Kxg2 {[%clk 0:02:47.3]} 14... a6 {[%clk 0:02:27.7]} 15. Rfd1 {[%clk 0:02:47]}
15... h5 {[%clk 0:02:16.4]} 16. Nd5 {[%clk 0:02:40.3]} 16... Nxd5 {[%clk
0:02:14.9]} 17. cxd5 {[%clk 0:02:38.9]} 17... Bxb2 {[%clk 0:02:13.2]} 18. Qxb2
{[%clk 0:02:38.8]} 18... Qa5 {[%clk 0:02:13.2]} 19. e4 {[%clk 0:02:36.5]} 19...
Qb4 {[%clk 0:02:09.4]} 20. f3 {[%clk 0:02:15.4]} 20... Kh7 {[%clk 0:02:03.6]}
21. a3 {[%clk 0:02:13.4]} 21... Qb6 {[%clk 0:02:01.6]} 22. b4 {[%clk 0:02:08]}
22... Qe3 {[%clk 0:02:00.6]} 23. a4 {[%clk 0:02:02.6]} 23... h4 {[%clk
0:01:53.2]} 24. gxh4 {[%clk 0:01:51.2]} 24... Qf4 {[%clk 0:01:53.3]} 25. Qf2
{[%clk 0:01:49.6]} 25... Rxc1 {[%clk 0:01:51.9]} 0-1

[Event "Early-Titled-Tuesday-Blitz-September-12-2023"]
[Site "Chess.com"]
[Date "2023.09.12"]
[Round "7"]
[White "parintele_chess"]
[Black "Artem_Sadovsky"]
[Result "0-1"]
[WhiteElo "2263"]
[BlackElo "2540"]
[TimeControl "180+1"]
[EndTime "9:14:20 PDT"]
[Termination "Artem_Sadovsky won by resignation"]

1. d4 {[%clk 0:03:00.9]} 1... g6 {[%clk 0:02:57.6]} 2. e4 {[%clk 0:02:57.8]}
2... Bg7 {[%clk 0:02:58.5]} 3. Nc3 {[%clk 0:02:57.7]} 3... d6 {[%clk 0:02:58.5]}
4. f3 {[%clk 0:02:56.1]} 4... e5 {[%clk 0:02:58.9]} 5. d5 {[%clk 0:02:55.5]}
5... f5 {[%clk 0:02:58.8]} 6. Bb5+ {[%clk 0:02:52.6]} 6... c6 {[%clk 0:02:51.8]}
7. Bc4 {[%clk 0:02:50.2]} 7... Nf6 {[%clk 0:02:51.6]} 8. Bg5 {[%clk 0:02:47.9]}
8... b5 {[%clk 0:02:48.6]} 9. Bb3 {[%clk 0:02:47.4]} 9... b4 {[%clk 0:02:48]}
10. Na4 {[%clk 0:02:39.9]} 10... c5 {[%clk 0:02:47.8]} 11. Qe2 {[%clk
0:02:31.9]} 11... Ba6 {[%clk 0:02:47.3]} 12. Bc4 {[%clk 0:02:30.3]} 12... Qa5
{[%clk 0:02:46.4]} 13. Bxa6 {[%clk 0:02:24.6]} 13... Nxa6 {[%clk 0:02:47.3]} 14.
b3 {[%clk 0:02:24.4]} 14... O-O {[%clk 0:02:43.9]} 15. Nb2 {[%clk 0:02:17.9]}
15... Nc7 {[%clk 0:02:39.5]} 16. Nc4 {[%clk 0:02:17.2]} 16... Qa6 {[%clk
0:02:39.6]} 17. Nh3 {[%clk 0:02:11.5]} 17... Nb5 {[%clk 0:02:36.8]} 18. Nxd6
{[%clk 0:02:02.4]} 18... Qxd6 {[%clk 0:02:37.7]} 19. Qxb5 {[%clk 0:02:02.3]}
19... fxe4 {[%clk 0:02:38]} 20. Bxf6 {[%clk 0:01:36.9]} 20... Qxf6 {[%clk
0:02:38.9]} 21. fxe4 {[%clk 0:01:37.2]} 21... Qh4+ {[%clk 0:02:38.9]} 22. Kd1
{[%clk 0:01:32.7]} 22... Qxe4 {[%clk 0:02:33.1]} 23. Qc4 {[%clk 0:01:09.9]}
23... Qxg2 {[%clk 0:02:29.5]} 0-1

[Event "Early-Titled-Tuesday-Blitz-September-12-2023"]
[Site "Chess.com"]
[Date "2023.09.12"]
[Round "7"]
[White "abhidabhi"]
[Black "crazy_but_lazy"]
[Result "1-0"]
[WhiteElo "2882"]
[BlackElo "2634"]
[TimeControl "180+1"]
[EndTime "9:14:56 PDT"]
[Termination "abhidabhi won by resignation"]

1. c4 {[%clk 0:03:00.9]} 1... Nf6 {[%clk 0:02:56.4]} 2. Nc3 {[%clk 0:03:00.4]}
2... g6 {[%clk 0:02:49.5]} 3. g3 {[%clk 0:02:58.1]} 3... Bg7 {[%clk 0:02:49.6]}
4. d4 {[%clk 0:02:57.9]} 4... O-O {[%clk 0:02:48.9]} 5. Bg2 {[%clk 0:02:58.2]}
5... d6 {[%clk 0:02:49.2]} 6. Nf3 {[%clk 0:02:57.8]} 6... Nbd7 {[%clk
0:02:48.9]} 7. O-O {[%clk 0:02:57.8]} 7... e5 {[%clk 0:02:48.7]} 8. e4 {[%clk
0:02:58.4]} 8... exd4 {[%clk 0:02:47]} 9. Nxd4 {[%clk 0:02:58.2]} 9... Re8
{[%clk 0:02:47.4]} 10. h3 {[%clk 0:02:54.2]} 10... Nc5 {[%clk 0:02:47.8]} 11.
Re1 {[%clk 0:02:51.1]} 11... Ne6 {[%clk 0:02:47.6]} 12. Be3 {[%clk 0:02:48]}
12... h6 {[%clk 0:02:46.2]} 13. Qd2 {[%clk 0:02:47.2]} 13... Kh7 {[%clk
0:02:34.1]} 14. Rad1 {[%clk 0:02:43.8]} 14... Nxd4 {[%clk 0:02:07.6]} 15. Bxd4
{[%clk 0:02:43.5]} 15... Be6 {[%clk 0:02:07.8]} 16. b3 {[%clk 0:02:36]} 16...
Nd7 {[%clk 0:02:06.9]} 17. f4 {[%clk 0:02:31.9]} 17... Bxd4+ {[%clk 0:02:03.4]}
18. Qxd4 {[%clk 0:02:32.1]} 18... Qf6 {[%clk 0:02:03.8]} 19. Qxf6 {[%clk
0:02:20.9]} 19... Nxf6 {[%clk 0:02:04.7]} 20. e5 {[%clk 0:02:21.5]} 20... dxe5
{[%clk 0:02:00.6]} 21. fxe5 {[%clk 0:02:22.4]} 21... Nh5 {[%clk 0:02:00.2]} 22.
Bxb7 {[%clk 0:02:21.6]} 22... Rab8 {[%clk 0:01:49.1]} 23. Bc6 {[%clk 0:02:21.2]}
23... Re7 {[%clk 0:01:46.3]} 24. Kg2 {[%clk 0:02:20.9]} 24... Rb6 {[%clk
0:01:35]} 25. Bf3 {[%clk 0:02:20.5]} 25... Ng7 {[%clk 0:01:34.4]} 26. g4 {[%clk
0:02:20.9]} 26... h5 {[%clk 0:01:28.6]} 27. Ne4 {[%clk 0:02:18.6]} 27... Rb8
{[%clk 0:01:26.3]} 28. Rd2 {[%clk 0:02:11.8]} 28... a5 {[%clk 0:01:20.2]} 29.
Red1 {[%clk 0:02:09]} 29... Ne8 {[%clk 0:01:14.8]} 30. Rd8 {[%clk 0:02:07.3]}
30... Rxd8 {[%clk 0:01:12.8]} 31. Rxd8 {[%clk 0:02:08.2]} 31... a4 {[%clk
0:01:11.8]} 32. Rxe8 {[%clk 0:02:02.5]} 1-0

[Event "Early-Titled-Tuesday-Blitz-September-12-2023"]
[Site "Chess.com"]
[Date "2023.09.12"]
[Round "7"]
[White "kleinebeer98"]
[Black "MKlose11"]
[Result "1-0"]
[WhiteElo "2829"]
[BlackElo "2621"]
[TimeControl "180+1"]
[EndTime "9:15:09 PDT"]
[Termination "kleinebeer98 won by resignation"]

1. a4 {[%clk 0:03:00.9]} 1... e5 {[%clk 0:02:53.1]} 2. Ra3 {[%clk 0:03:01.8]}
2... d5 {[%clk 0:02:52.2]} 3. Rg3 {[%clk 0:03:02.7]} 3... Nf6 {[%clk 0:02:51.8]}
4. e3 {[%clk 0:03:01.9]} 4... Ne4 {[%clk 0:02:49.7]} 5. b3 {[%clk 0:03:02.5]}
5... Nxg3 {[%clk 0:02:49]} 6. hxg3 {[%clk 0:03:03.4]} 6... Be6 {[%clk
0:02:48.4]} 7. Bb2 {[%clk 0:03:04]} 7... f6 {[%clk 0:02:48.2]} 8. Bd3 {[%clk
0:03:01.3]} 8... e4 {[%clk 0:02:36.3]} 9. Bb5+ {[%clk 0:03:01.8]} 9... c6 {[%clk
0:02:32.1]} 10. Bf1 {[%clk 0:03:02]} 10... Nd7 {[%clk 0:02:32.5]} 11. Ne2 {[%clk
0:03:00.8]} 11... Qc7 {[%clk 0:02:28.9]} 12. Nbc3 {[%clk 0:02:55.8]} 12... Bb4
{[%clk 0:02:23.3]} 13. Nd4 {[%clk 0:02:53.5]} 13... Bf7 {[%clk 0:02:21.5]} 14.
Qg4 {[%clk 0:02:52.1]} 14... g6 {[%clk 0:02:11.9]} 15. Ne6 {[%clk 0:02:48.6]}
15... Qd6 {[%clk 0:02:08.6]} 16. Nf4 {[%clk 0:02:41.3]} 16... h5 {[%clk
0:01:51.6]} 17. Qd1 {[%clk 0:02:22.8]} 17... O-O-O {[%clk 0:01:48.3]} 18. Qa1
{[%clk 0:02:22.5]} 18... Rhe8 {[%clk 0:01:43.9]} 19. Nfe2 {[%clk 0:02:21.1]}
19... f5 {[%clk 0:01:41.7]} 20. a5 {[%clk 0:02:21.5]} 20... Ne5 {[%clk
0:01:31.2]} 21. a6 {[%clk 0:02:21]} 21... b6 {[%clk 0:01:30.4]} 22. Nd4 {[%clk
0:02:21.3]} 22... Qe7 {[%clk 0:01:25.7]} 23. Qa4 {[%clk 0:02:17.1]} 23... Qd6
{[%clk 0:01:06.1]} 24. Ncb5 {[%clk 0:02:17.4]} 24... cxb5 {[%clk 0:01:03.3]} 25.
Nxb5 {[%clk 0:02:18.3]} 25... Qe7 {[%clk 0:00:42.7]} 26. Bxe5 {[%clk 0:02:17.3]}
26... Qxe5 {[%clk 0:00:40.9]} 27. Nxa7+ {[%clk 0:02:18]} 27... Kb8 {[%clk
0:00:35]} 28. Nc6+ {[%clk 0:02:17.8]} 28... Ka8 {[%clk 0:00:35.2]} 29. Nxe5
{[%clk 0:02:18.3]} 29... Rxe5 {[%clk 0:00:34.5]} 30. Qc6+ {[%clk 0:02:18.8]} 1-0

[Event "Early-Titled-Tuesday-Blitz-September-12-2023"]
[Site "Chess.com"]
[Date "2023.09.12"]
[Round "7"]
[White "sqmorr"]
[Black "AleksandrAleksikov"]
[Result "0-1"]
[WhiteElo "2155"]
[BlackElo "2273"]
[TimeControl "180+1"]
[EndTime "9:15:09 PDT"]
[Termination "AleksandrAleksikov won by resignation"]

1. d4 {[%clk 0:03:00.9]} 1... Nf6 {[%clk 0:02:57.1]} 2. c4 {[%clk 0:03:00.4]}
2... g6 {[%clk 0:02:56.4]} 3. Nc3 {[%clk 0:02:59.6]} 3... Bg7 {[%clk 0:02:56]}
4. e4 {[%clk 0:02:58.9]} 4... d6 {[%clk 0:02:55.2]} 5. Nf3 {[%clk 0:02:58.3]}
5... O-O {[%clk 0:02:50.9]} 6. Be2 {[%clk 0:02:57.7]} 6... e5 {[%clk 0:02:50.9]}
7. O-O {[%clk 0:02:57]} 7... Na6 {[%clk 0:02:50]} 8. Be3 {[%clk 0:02:50]} 8...
Ng4 {[%clk 0:02:48.1]} 9. Bg5 {[%clk 0:02:48.7]} 9... f6 {[%clk 0:02:48.3]} 10.
Bc1 {[%clk 0:02:40.4]} 10... Kh8 {[%clk 0:02:47.6]} 11. Rb1 {[%clk 0:02:30]}
11... Nh6 {[%clk 0:02:33.9]} 12. b4 {[%clk 0:02:24.4]} 12... exd4 {[%clk
0:02:30.4]} 13. Nxd4 {[%clk 0:02:23.1]} 13... Nxb4 {[%clk 0:02:28.5]} 14. Rxb4
{[%clk 0:02:20.4]} 14... c5 {[%clk 0:02:27.2]} 15. Rb1 {[%clk 0:02:18.4]} 15...
cxd4 {[%clk 0:02:26.3]} 16. Qxd4 {[%clk 0:02:17]} 16... f5 {[%clk 0:02:03.6]}
17. Qd3 {[%clk 0:02:14.5]} 17... fxe4 {[%clk 0:02:02.5]} 18. Nxe4 {[%clk
0:02:13.3]} 18... Nf5 {[%clk 0:02:00.4]} 19. Bb2 {[%clk 0:02:09.9]} 19... Qe7
{[%clk 0:01:52.4]} 20. Bxg7+ {[%clk 0:02:06.9]} 20... Qxg7 {[%clk 0:01:43.5]}
21. Rfe1 {[%clk 0:02:02.7]} 21... Be6 {[%clk 0:01:34.3]} 22. Nxd6 {[%clk
0:01:50.9]} 22... Rad8 {[%clk 0:01:31.8]} 23. c5 {[%clk 0:01:44.4]} 23... Nxd6
{[%clk 0:01:30.2]} 24. cxd6 {[%clk 0:01:41.9]} 24... Bf5 {[%clk 0:01:30]} 25.
Qd5 {[%clk 0:01:35.2]} 25... Bxb1 {[%clk 0:01:26.7]} 26. Rxb1 {[%clk 0:01:34.4]}
26... Qf6 {[%clk 0:01:26]} 27. d7 {[%clk 0:01:28.3]} 27... Qxf2+ {[%clk
0:01:23.4]} 0-1